[Event "*** Titled Tuesday Blitz"]
[Site "Chess.com"]
[Date "2020.04.14"]
[Round "6"]
[White "Danfii"]
[Black "HElissalt"]
[Result "1/2-1/2"]
[WhiteElo "2309"]
[BlackElo "2155"]
[TimeControl "180+1"]
[EndTime "11:05:22 PDT"]
[Termination "Game drawn by agreement"]

1. e4 {[%clk 0:03:00.9]} 1... d6 {[%clk 0:02:58]} 2. d4 {[%clk 0:03:00.6]} 2...
Nf6 {[%clk 0:02:58.6]} 3. Nc3 {[%clk 0:03:00.7]} 3... e5 {[%clk 0:02:58.8]} 4.
Nf3 {[%clk 0:03:00.5]} 4... Nbd7 {[%clk 0:02:57.8]} 5. Bc4 {[%clk 0:03:01]} 5...
Be7 {[%clk 0:02:58]} 6. a4 {[%clk 0:03:00.5]} 6... O-O {[%clk 0:02:57.9]} 7. O-O
{[%clk 0:03:00.1]} 7... c6 {[%clk 0:02:58]} 8. h3 {[%clk 0:03:00.3]} 8... b6
{[%clk 0:02:58]} 9. Qe2 {[%clk 0:02:58.5]} 9... a6 {[%clk 0:02:57]} 10. Rd1
{[%clk 0:02:58.2]} 10... Qc7 {[%clk 0:02:53]} 11. Nh4 {[%clk 0:02:55]} 11...
exd4 {[%clk 0:02:41.4]} 12. Rxd4 {[%clk 0:02:42.2]} 12... Ne5 {[%clk 0:02:39.6]}
13. Nf5 {[%clk 0:02:29.4]} 13... Bxf5 {[%clk 0:02:31.4]} 14. exf5 {[%clk
0:02:30.3]} 14... d5 {[%clk 0:02:29.4]} 15. Bb3 {[%clk 0:02:24.6]} 15... Rfe8
{[%clk 0:02:18.4]} 16. Bf4 {[%clk 0:02:08.8]} 16... Bd6 {[%clk 0:02:15.9]} 17.
Qd2 {[%clk 0:01:54.2]} 17... Rad8 {[%clk 0:01:55.4]} 18. Rd1 {[%clk 0:01:48.1]}
18... b5 {[%clk 0:01:51.5]} 19. axb5 {[%clk 0:01:46.6]} 19... axb5 {[%clk
0:01:51.1]} 20. Bg5 {[%clk 0:01:31]} 20... Ned7 {[%clk 0:01:37.1]} 21. Rd3
{[%clk 0:01:19.3]} 21... h6 {[%clk 0:01:31.1]} 22. Bh4 {[%clk 0:01:14.3]} 22...
Bf4 {[%clk 0:01:28.1]} 23. Bg3 {[%clk 0:01:06.5]} 23... Bxd2 {[%clk 0:01:12.7]}
24. Bxc7 {[%clk 0:01:05.9]} 24... Rc8 {[%clk 0:01:10.7]} 25. R3xd2 {[%clk
0:01:04.5]} 25... Rxc7 {[%clk 0:01:10.8]} 26. g4 {[%clk 0:01:03.4]} 26... Nc5
{[%clk 0:01:09.4]} 27. f3 {[%clk 0:00:54]} 27... Rce7 {[%clk 0:01:08.9]} 28. Kf2
{[%clk 0:00:49.4]} 28... Re3 {[%clk 0:01:01.9]} 29. Re2 {[%clk 0:00:44.8]} 29...
Rxe2+ {[%clk 0:00:36.6]} 30. Nxe2 {[%clk 0:00:45.7]} 30... Nxb3 {[%clk
0:00:35.6]} 31. cxb3 {[%clk 0:00:46.6]} 31... c5 {[%clk 0:00:27.2]} 32. Nc3
{[%clk 0:00:46.1]} 32... d4 {[%clk 0:00:27.3]} 33. Nxb5 {[%clk 0:00:31]} 33...
Rb8 {[%clk 0:00:26.9]} 34. Nd6 {[%clk 0:00:27.1]} 34... Rxb3 {[%clk 0:00:25.9]}
35. Rd2 {[%clk 0:00:27.7]} 35... Nd5 {[%clk 0:00:24.2]} 36. Ne4 {[%clk
0:00:26.4]} 36... Ne3 {[%clk 0:00:23.3]} 37. Nxc5 {[%clk 0:00:22.4]} 37... Rxb2
{[%clk 0:00:22.9]} 38. Rxb2 {[%clk 0:00:19.5]} 38... Nd1+ {[%clk 0:00:22.8]} 39.
Ke2 {[%clk 0:00:19.6]} 39... Nxb2 {[%clk 0:00:23]} 40. Kd2 {[%clk 0:00:19.3]}
40... f6 {[%clk 0:00:21.2]} 41. Kc2 {[%clk 0:00:19.4]} 41... Nc4 {[%clk
0:00:21.1]} 42. Kd3 {[%clk 0:00:19.7]} 42... Ne5+ {[%clk 0:00:20.9]} 43. Kxd4
{[%clk 0:00:20]} 43... Nxf3+ {[%clk 0:00:20.6]} 44. Ke3 {[%clk 0:00:18.9]} 44...
Ng1 {[%clk 0:00:20.4]} 45. h4 {[%clk 0:00:18.5]} 45... h5 {[%clk 0:00:17.9]} 46.
gxh5 {[%clk 0:00:12.4]} 46... Kh7 {[%clk 0:00:17.9]} 47. Nd3 {[%clk 0:00:09.6]}
47... Kh6 {[%clk 0:00:16.9]} 48. Kf2 {[%clk 0:00:08.8]} 48... Nh3+ {[%clk
0:00:15.9]} 49. Kg2 {[%clk 0:00:09.1]} 49... Ng5 {[%clk 0:00:14.6]} 50. hxg5+
{[%clk 0:00:09]} 50... Kxg5 {[%clk 0:00:14.6]} 51. Kg3 {[%clk 0:00:08.7]} 51...
Kxf5 {[%clk 0:00:13.6]} 52. Kh4 {[%clk 0:00:07]} 52... Ke4 {[%clk 0:00:13.1]}
53. Nc5+ {[%clk 0:00:06.3]} 53... Kf5 {[%clk 0:00:12.9]} 54. Nd7 {[%clk
0:00:05.1]} 54... Ke6 {[%clk 0:00:12.5]} 55. Nf8+ {[%clk 0:00:04.8]} 55... Kf7
{[%clk 0:00:12.6]} 56. Ng6 {[%clk 0:00:05.7]} 56... Kg8 {[%clk 0:00:12.4]} 57.
Kg4 {[%clk 0:00:06]} 57... Kh7 {[%clk 0:00:12.6]} 58. Kf5 {[%clk 0:00:05.8]}
58... Kh6 {[%clk 0:00:12.9]} 59. Nf4 {[%clk 0:00:06.7]} 59... Kh7 {[%clk
0:00:12.2]} 60. Ke6 {[%clk 0:00:06.2]} 60... Kh6 {[%clk 0:00:12.4]} 61. Kf7
{[%clk 0:00:06.1]} 61... Kh7 {[%clk 0:00:12.2]} 62. Ke6 {[%clk 0:00:05.8]} 62...
Kh6 {[%clk 0:00:12.3]} 63. Kf5 {[%clk 0:00:06.3]} 63... Kh7 {[%clk 0:00:11.7]}
64. Ng6 {[%clk 0:00:06.6]} 64... Kh6 {[%clk 0:00:11.7]} 65. Kg4 {[%clk
0:00:07.5]} 65... Kh7 {[%clk 0:00:11.8]} 66. Kh4 {[%clk 0:00:05.1]} 66... Kh6
{[%clk 0:00:12]} 67. Nf4 {[%clk 0:00:04.6]} 67... Kh7 {[%clk 0:00:12.2]} 68. Nd5
{[%clk 0:00:05.3]} 68... Kh6 {[%clk 0:00:11.7]} 69. Ne3 {[%clk 0:00:05.4]} 69...
Kh7 {[%clk 0:00:11.5]} 70. Nf5 {[%clk 0:00:03.8]} 70... g6 {[%clk 0:00:11.3]}
71. hxg6+ {[%clk 0:00:03.8]} 71... Kxg6 {[%clk 0:00:11.2]} 72. Kg4 {[%clk
0:00:04.7]} 72... Kf7 {[%clk 0:00:10.8]} 73. Ng3 {[%clk 0:00:05.6]} 73... Kg6
{[%clk 0:00:10.8]} 74. Kf4 {[%clk 0:00:04.7]} 1/2-1/2

[Event "*** Titled Tuesday Blitz"]
[Site "Chess.com"]
[Date "2020.04.14"]
[Round "6"]
[White "avocadosheena"]
[Black "AVolodin"]
[Result "1/2-1/2"]
[WhiteElo "2148"]
[BlackElo "2697"]
[TimeControl "180+1"]
[EndTime "11:05:22 PDT"]
[Termination "Game drawn by repetition"]

1. d4 {[%clk 0:03:00.9]} 1... Nf6 {[%clk 0:02:13.4]} 2. c4 {[%clk 0:03:00.3]}
2... c5 {[%clk 0:02:13.1]} 3. d5 {[%clk 0:03:00.1]} 3... b5 {[%clk 0:02:12.9]}
4. cxb5 {[%clk 0:02:59.6]} 4... a6 {[%clk 0:02:13]} 5. bxa6 {[%clk 0:02:59.6]}
5... g6 {[%clk 0:02:12.4]} 6. Nc3 {[%clk 0:02:59.2]} 6... Bxa6 {[%clk
0:02:11.8]} 7. e4 {[%clk 0:02:56.4]} 7... Bxf1 {[%clk 0:02:11.2]} 8. Kxf1 {[%clk
0:02:57.3]} 8... d6 {[%clk 0:02:05]} 9. Nf3 {[%clk 0:02:56.8]} 9... Bg7 {[%clk
0:01:37.7]} 10. g3 {[%clk 0:02:55.7]} 10... O-O {[%clk 0:01:23.8]} 11. Kg2
{[%clk 0:02:55.3]} 11... Nbd7 {[%clk 0:01:23.2]} 12. a4 {[%clk 0:02:48.9]} 12...
Qa5 {[%clk 0:01:20.7]} 13. Bd2 {[%clk 0:02:47.5]} 13... Qb4 {[%clk 0:01:19.7]}
14. Qc2 {[%clk 0:02:43.8]} 14... Rfb8 {[%clk 0:01:19.6]} 15. Rab1 {[%clk
0:02:25.9]} 15... Qb3 {[%clk 0:01:16.2]} 16. Rhc1 {[%clk 0:01:49]} 16... Ne8
{[%clk 0:00:36.3]} 17. Be1 {[%clk 0:01:31]} 17... Nc7 {[%clk 0:00:33]} 18. Qxb3
{[%clk 0:01:20.9]} 18... Rxb3 {[%clk 0:00:33.9]} 19. Nd2 {[%clk 0:01:21.1]}
19... Rb4 {[%clk 0:00:32.3]} 20. b3 {[%clk 0:01:10.6]} 20... Ne5 {[%clk
0:00:32.5]} 21. Na2 {[%clk 0:00:54.5]} 21... Rb7 {[%clk 0:00:28.4]} 22. Nc4
{[%clk 0:00:33.8]} 22... Nd3 {[%clk 0:00:26.8]} 23. Rd1 {[%clk 0:00:29.1]} 23...
Nxe1+ {[%clk 0:00:25.5]} 24. Rxe1 {[%clk 0:00:29.4]} 24... Bd4 {[%clk
0:00:23.8]} 25. Rec1 {[%clk 0:00:20]} 25... f5 {[%clk 0:00:23.7]} 26. f3 {[%clk
0:00:17.7]} 26... Kg7 {[%clk 0:00:23.6]} 27. Nc3 {[%clk 0:00:17.6]} 27... Bxc3
{[%clk 0:00:22.1]} 28. Rxc3 {[%clk 0:00:18.5]} 28... Rxa4 {[%clk 0:00:19.7]} 29.
bxa4 {[%clk 0:00:18]} 29... Rxb1 {[%clk 0:00:20.3]} 30. a5 {[%clk 0:00:17.4]}
30... Na6 {[%clk 0:00:19.1]} 31. Nb6 {[%clk 0:00:16.4]} 31... Ra1 {[%clk
0:00:16.7]} 32. Nc8 {[%clk 0:00:16.2]} 32... Ra2+ {[%clk 0:00:10.7]} 33. Kh3
{[%clk 0:00:15.7]} 33... Kf6 {[%clk 0:00:08.5]} 34. exf5 {[%clk 0:00:15.4]}
34... gxf5 {[%clk 0:00:08.6]} 35. Re3 {[%clk 0:00:15.9]} 35... Nc7 {[%clk
0:00:04.5]} 36. Nxe7 {[%clk 0:00:15.6]} 36... Rxa5 {[%clk 0:00:03.6]} 37. Ng8+
{[%clk 0:00:11.5]} 37... Kg7 {[%clk 0:00:02.8]} 38. Re7+ {[%clk 0:00:10]} 38...
Kxg8 {[%clk 0:00:03.4]} 39. Rxc7 {[%clk 0:00:10.9]} 39... Ra3 {[%clk 0:00:03.2]}
40. Rd7 {[%clk 0:00:10.9]} 40... Rxf3 {[%clk 0:00:03.2]} 41. Rxd6 {[%clk
0:00:10.9]} 41... Kg7 {[%clk 0:00:03.7]} 42. Rc6 {[%clk 0:00:11.1]} 42... Rc3
{[%clk 0:00:03.5]} 43. d6 {[%clk 0:00:11.5]} 43... Rd3 {[%clk 0:00:03.9]} 44.
Rxc5 {[%clk 0:00:11.4]} 44... Rxd6 {[%clk 0:00:03.3]} 45. Rxf5 {[%clk
0:00:11.9]} 45... Kg6 {[%clk 0:00:03.9]} 46. Rf4 {[%clk 0:00:11.9]} 46... h5
{[%clk 0:00:04.3]} 47. g4 {[%clk 0:00:11.3]} 47... Rd3+ {[%clk 0:00:02.8]} 48.
Kh4 {[%clk 0:00:11.3]} 48... hxg4 {[%clk 0:00:03.2]} 49. Rxg4+ {[%clk
0:00:11.1]} 49... Kh6 {[%clk 0:00:03.8]} 50. Rg3 {[%clk 0:00:10.8]} 50... Rd4+
{[%clk 0:00:04]} 51. Kh3 {[%clk 0:00:11.1]} 51... Kh5 {[%clk 0:00:04.3]} 52. Rf3
{[%clk 0:00:10.8]} 52... Rh4+ {[%clk 0:00:04.6]} 53. Kg3 {[%clk 0:00:10.6]}
53... Rg4+ {[%clk 0:00:05.5]} 54. Kh3 {[%clk 0:00:10.8]} 54... Rc4 {[%clk
0:00:06.4]} 55. Re3 {[%clk 0:00:10.6]} 55... Kg5 {[%clk 0:00:06.5]} 56. Kg3
{[%clk 0:00:10.5]} 56... Kf5 {[%clk 0:00:06.5]} 57. Kf3 {[%clk 0:00:10.3]} 57...
Rh4 {[%clk 0:00:06]} 58. Kg3 {[%clk 0:00:10.4]} 58... Rg4+ {[%clk 0:00:06.3]}
59. Kh3 {[%clk 0:00:09.9]} 59... Rg1 {[%clk 0:00:06]} 60. Rg3 {[%clk 0:00:08.8]}
60... Rf1 {[%clk 0:00:05.4]} 61. Kg2 {[%clk 0:00:08.7]} 61... Rd1 {[%clk
0:00:04.8]} 62. Rf3+ {[%clk 0:00:08.7]} 62... Kg4 {[%clk 0:00:04.6]} 63. Rg3+
{[%clk 0:00:08.9]} 63... Kf4 {[%clk 0:00:05.1]} 64. Rf3+ {[%clk 0:00:09.2]}
64... Ke4 {[%clk 0:00:05.6]} 65. Rg3 {[%clk 0:00:09.4]} 65... Rd2+ {[%clk
0:00:05.3]} 66. Kh3 {[%clk 0:00:09.8]} 66... Kf4 {[%clk 0:00:05.7]} 67. Rg4+
{[%clk 0:00:09.8]} 67... Kf5 {[%clk 0:00:05.9]} 68. Rg3 {[%clk 0:00:09.7]} 68...
Rd4 {[%clk 0:00:05.6]} 69. Rf3+ {[%clk 0:00:09.3]} 69... Kg5 {[%clk 0:00:06.1]}
70. Rg3+ {[%clk 0:00:09.3]} 70... Kh5 {[%clk 0:00:06.1]} 71. Rf3 {[%clk
0:00:08.9]} 71... Rd5 {[%clk 0:00:05.3]} 72. Kg3 {[%clk 0:00:08.3]} 72... Kg5
{[%clk 0:00:05.6]} 73. Kh3 {[%clk 0:00:08.3]} 73... Rd1 {[%clk 0:00:04.9]} 74.
Rg3+ {[%clk 0:00:08.3]} 74... Kf4 {[%clk 0:00:05.2]} 75. Kg2 {[%clk 0:00:08.4]}
75... Rd2+ {[%clk 0:00:05]} 76. Kh3 {[%clk 0:00:08.3]} 76... Rf2 {[%clk
0:00:05.4]} 77. Rg2 {[%clk 0:00:07.6]} 77... Rf3+ {[%clk 0:00:05.1]} 78. Rg3
{[%clk 0:00:08]} 78... Rf1 {[%clk 0:00:05.6]} 79. Kg2 {[%clk 0:00:08.2]} 79...
Rd1 {[%clk 0:00:05.4]} 80. Rf3+ {[%clk 0:00:08.1]} 80... Kg4 {[%clk 0:00:05.8]}
81. Rg3+ {[%clk 0:00:08.4]} 81... Kf4 {[%clk 0:00:06.1]} 1/2-1/2

[Event "*** Titled Tuesday Blitz"]
[Site "Chess.com"]
[Date "2020.04.14"]
[Round "6"]
[White "Gabix_94"]
[Black "vizumatv4hoda"]
[Result "0-1"]
[WhiteElo "2857"]
[BlackElo "2766"]
[TimeControl "180+1"]
[EndTime "11:05:26 PDT"]
[Termination "vizumatv4hoda won on time"]

1. d4 {[%clk 0:03:00.5]} 1... Nf6 {[%clk 0:02:59.5]} 2. c4 {[%clk 0:03:00.3]}
2... g6 {[%clk 0:03:00.4]} 3. Nc3 {[%clk 0:03:00.1]} 3... Bg7 {[%clk 0:03:01.3]}
4. e4 {[%clk 0:03:00.3]} 4... O-O {[%clk 0:03:01.9]} 5. f3 {[%clk 0:03:00.9]}
5... d6 {[%clk 0:03:02.5]} 6. Nge2 {[%clk 0:03:01.6]} 6... c5 {[%clk 0:03:00.2]}
7. d5 {[%clk 0:03:00.7]} 7... e6 {[%clk 0:02:59.7]} 8. Ng3 {[%clk 0:03:01.1]}
8... exd5 {[%clk 0:02:59.2]} 9. cxd5 {[%clk 0:03:02]} 9... h5 {[%clk 0:02:56.2]}
10. Bg5 {[%clk 0:03:00.4]} 10... Qb6 {[%clk 0:02:50.2]} 11. Qd2 {[%clk
0:02:58.3]} 11... Nh7 {[%clk 0:02:46.7]} 12. Be3 {[%clk 0:02:56]} 12... h4
{[%clk 0:02:45.3]} 13. Nge2 {[%clk 0:02:54.9]} 13... Nd7 {[%clk 0:02:43.6]} 14.
Nf4 {[%clk 0:02:49.7]} 14... Ne5 {[%clk 0:02:43.7]} 15. Be2 {[%clk 0:02:47.8]}
15... Qb4 {[%clk 0:02:38.5]} 16. O-O {[%clk 0:02:24]} 16... Nc4 {[%clk
0:02:37.3]} 17. Bxc4 {[%clk 0:02:24.1]} 17... Qxc4 {[%clk 0:02:38.2]} 18. a4
{[%clk 0:02:22.4]} 18... Bd7 {[%clk 0:02:32.8]} 19. Rfc1 {[%clk 0:02:18]} 19...
Qb3 {[%clk 0:02:32.1]} 20. Nd3 {[%clk 0:02:11.6]} 20... a6 {[%clk 0:02:16.7]}
21. Kh1 {[%clk 0:02:03.6]} 21... h3 {[%clk 0:01:54.7]} 22. g4 {[%clk 0:01:57.8]}
22... Rfc8 {[%clk 0:01:54.5]} 23. Ra3 {[%clk 0:01:49]} 23... Qb6 {[%clk
0:01:51.5]} 24. b4 {[%clk 0:01:48.7]} 24... Bd4 {[%clk 0:01:44.9]} 25. bxc5
{[%clk 0:01:45.3]} 25... dxc5 {[%clk 0:01:45.1]} 26. a5 {[%clk 0:01:40.8]} 26...
Qf6 {[%clk 0:01:45]} 27. Rf1 {[%clk 0:01:33.3]} 27... Bxg4 {[%clk 0:01:41.9]}
28. Qe2 {[%clk 0:01:19]} 28... Bh5 {[%clk 0:01:37]} 29. e5 {[%clk 0:01:16.5]}
29... Bxe5 {[%clk 0:01:32.5]} 30. Ne4 {[%clk 0:01:14.9]} 30... Qf5 {[%clk
0:01:32.9]} 31. Bxc5 {[%clk 0:01:11.7]} 31... Rd8 {[%clk 0:01:22.5]} 32. d6
{[%clk 0:01:07.5]} 32... Rac8 {[%clk 0:01:18.9]} 33. Bb6 {[%clk 0:01:07.6]}
33... Re8 {[%clk 0:01:05.1]} 34. Nxe5 {[%clk 0:01:02]} 34... Rxe5 {[%clk
0:01:06]} 35. Re3 {[%clk 0:01:01.3]} 35... Qd7 {[%clk 0:00:59.4]} 36. Nf6+
{[%clk 0:00:59.4]} 36... Nxf6 {[%clk 0:00:58.3]} 37. Rxe5 {[%clk 0:01:00.3]}
37... Qxd6 {[%clk 0:00:56.6]} 38. Re3 {[%clk 0:00:55.4]} 38... Kh7 {[%clk
0:00:52.9]} 39. Rd1 {[%clk 0:00:53.7]} 39... Qb4 {[%clk 0:00:49.8]} 40. Bd4
{[%clk 0:00:50.2]} 40... Nd5 {[%clk 0:00:49.7]} 41. Re4 {[%clk 0:00:49.9]} 41...
Nc3 {[%clk 0:00:43]} 42. Bxc3 {[%clk 0:00:43.1]} 42... Qxc3 {[%clk 0:00:43.9]}
43. Re3 {[%clk 0:00:42.7]} 43... Re8 {[%clk 0:00:37.3]} 44. Rxc3 {[%clk
0:00:26.7]} 44... Rxe2 {[%clk 0:00:37.5]} 45. Rb1 {[%clk 0:00:23.4]} 45... Kg7
{[%clk 0:00:34.5]} 46. Kg1 {[%clk 0:00:19.9]} 46... Rg2+ {[%clk 0:00:34.7]} 47.
Kh1 {[%clk 0:00:18.7]} 47... Rf2 {[%clk 0:00:35.3]} 48. Kg1 {[%clk 0:00:18.8]}
48... Rxf3 {[%clk 0:00:31.5]} 49. Rxf3 {[%clk 0:00:18.6]} 49... Bxf3 {[%clk
0:00:32.4]} 50. Kf2 {[%clk 0:00:19.5]} 50... Bg2 {[%clk 0:00:30.2]} 51. Rb6
{[%clk 0:00:20.4]} 51... g5 {[%clk 0:00:22.2]} 52. Kg3 {[%clk 0:00:20.5]} 52...
f6 {[%clk 0:00:21.6]} 53. Kg4 {[%clk 0:00:20.7]} 53... Kg6 {[%clk 0:00:20.9]}
54. Kg3 {[%clk 0:00:19.1]} 54... Kf5 {[%clk 0:00:20.2]} 55. Rb4 {[%clk 0:00:19]}
55... Ke5 {[%clk 0:00:20.3]} 56. Kg4 {[%clk 0:00:17.9]} 56... Bf1 {[%clk
0:00:19.6]} 57. Rxb7 {[%clk 0:00:16.1]} 57... Bg2 {[%clk 0:00:19]} 58. Rb6
{[%clk 0:00:15.8]} 58... Bf1 {[%clk 0:00:19.5]} 59. Rb2 {[%clk 0:00:14.8]} 59...
Ke6 {[%clk 0:00:18.5]} 60. Rf2 {[%clk 0:00:14.3]} 60... Bg2 {[%clk 0:00:18.2]}
61. Re2+ {[%clk 0:00:14.5]} 61... Kd5 {[%clk 0:00:18.4]} 62. Kf5 {[%clk
0:00:15]} 62... Kc5 {[%clk 0:00:18.2]} 63. Kxf6 {[%clk 0:00:15.1]} 63... Kb4
{[%clk 0:00:18.5]} 64. Re5 {[%clk 0:00:14.7]} 64... g4 {[%clk 0:00:18.6]} 65.
Rg5 {[%clk 0:00:14.7]} 65... Bf3 {[%clk 0:00:19]} 66. Ke6 {[%clk 0:00:13]} 66...
Kc4 {[%clk 0:00:19.2]} 67. Kd6 {[%clk 0:00:13.3]} 67... Kd4 {[%clk 0:00:19.5]}
68. Kc7 {[%clk 0:00:13.4]} 68... Be2 {[%clk 0:00:20]} 69. Kb6 {[%clk 0:00:12.7]}
69... Ke4 {[%clk 0:00:20.4]} 70. Kc5 {[%clk 0:00:10.7]} 70... Kf3 {[%clk
0:00:20.7]} 71. Kd4 {[%clk 0:00:09.6]} 71... Kg2 {[%clk 0:00:20.7]} 72. Rg6
{[%clk 0:00:09.1]} 72... Kxh2 {[%clk 0:00:20.6]} 73. Ke3 {[%clk 0:00:10]} 73...
Bf3 {[%clk 0:00:20.4]} 74. Kf2 {[%clk 0:00:10.5]} 74... Bd1 {[%clk 0:00:18.8]}
75. Rd6 {[%clk 0:00:10.3]} 75... g3+ {[%clk 0:00:18.6]} 76. Ke1 {[%clk
0:00:10.2]} 76... g2 {[%clk 0:00:18.7]} 77. Rd2 {[%clk 0:00:09.2]} 77... Kh1
{[%clk 0:00:19]} 78. Rxd1 {[%clk 0:00:09.5]} 78... g1=Q+ {[%clk 0:00:19.9]} 79.
Ke2 {[%clk 0:00:10.4]} 79... Qxd1+ {[%clk 0:00:20]} 80. Kxd1 {[%clk 0:00:11.3]}
80... Kg2 {[%clk 0:00:20.8]} 0-1

[Event "*** Titled Tuesday Blitz"]
[Site "Chess.com"]
[Date "2020.04.14"]
[Round "6"]
[White "Witik"]
[Black "SmirnovTimofey2000"]
[Result "0-1"]
[WhiteElo "2714"]
[BlackElo "2581"]
[TimeControl "180+1"]
[EndTime "11:05:27 PDT"]
[Termination "SmirnovTimofey2000 won by resignation"]

1. d4 {[%clk 0:03:00.9]} 1... d5 {[%clk 0:02:57.2]} 2. Bf4 {[%clk 0:02:59.4]}
2... c5 {[%clk 0:02:56.8]} 3. e3 {[%clk 0:02:59.1]} 3... Nc6 {[%clk 0:02:49.9]}
4. c3 {[%clk 0:02:58.1]} 4... Nf6 {[%clk 0:02:49.4]} 5. Nd2 {[%clk 0:02:57.9]}
5... Qb6 {[%clk 0:02:46.5]} 6. Qb3 {[%clk 0:02:57.2]} 6... c4 {[%clk 0:02:45.2]}
7. Qc2 {[%clk 0:02:56.8]} 7... g6 {[%clk 0:02:45]} 8. e4 {[%clk 0:02:56.6]} 8...
dxe4 {[%clk 0:02:31.4]} 9. Bxc4 {[%clk 0:02:55.8]} 9... Bf5 {[%clk 0:02:30]} 10.
Qb3 {[%clk 0:02:55.2]} 10... e6 {[%clk 0:02:27.6]} 11. Ne2 {[%clk 0:02:42.9]}
11... Be7 {[%clk 0:02:20.2]} 12. h3 {[%clk 0:02:38.7]} 12... h5 {[%clk
0:02:19.6]} 13. Nf1 {[%clk 0:02:17.4]} 13... O-O {[%clk 0:02:15.7]} 14. Ne3
{[%clk 0:02:17.2]} 14... Na5 {[%clk 0:02:06.8]} 15. Qxb6 {[%clk 0:02:12.5]}
15... axb6 {[%clk 0:02:07.7]} 16. Bb5 {[%clk 0:02:02.7]} 16... Nd5 {[%clk
0:01:57.2]} 17. Bh6 {[%clk 0:01:54.2]} 17... Rfd8 {[%clk 0:01:46.4]} 18. Ng3
{[%clk 0:01:15.4]} 18... h4 {[%clk 0:01:41.6]} 19. Ngxf5 {[%clk 0:01:10]} 19...
exf5 {[%clk 0:01:39.4]} 20. a4 {[%clk 0:00:42.9]} 20... Nc7 {[%clk 0:01:16.3]}
21. Be2 {[%clk 0:00:37.3]} 21... Ne6 {[%clk 0:00:47.4]} 22. d5 {[%clk
0:00:22.6]} 22... Nb3 {[%clk 0:00:32.5]} 23. Rd1 {[%clk 0:00:20]} 23... Nec5
{[%clk 0:00:28.3]} 24. Nc4 {[%clk 0:00:20]} 24... Nxa4 {[%clk 0:00:20.5]} 25. d6
{[%clk 0:00:17.8]} 25... Bf6 {[%clk 0:00:20.1]} 26. O-O {[%clk 0:00:09.7]} 26...
b5 {[%clk 0:00:18.4]} 27. Ne3 {[%clk 0:00:10]} 27... Nxb2 {[%clk 0:00:15.9]} 28.
Rb1 {[%clk 0:00:09.1]} 28... Bxc3 {[%clk 0:00:15.8]} 29. Nd5 {[%clk 0:00:09.4]}
29... b4 {[%clk 0:00:16.1]} 30. Ne7+ {[%clk 0:00:07]} 30... Kh7 {[%clk
0:00:15.4]} 31. Bf4 {[%clk 0:00:07.7]} 31... Nd4 {[%clk 0:00:13.4]} 32. Bd1
{[%clk 0:00:05.8]} 32... Ne6 {[%clk 0:00:13.2]} 33. Bh2 {[%clk 0:00:06.1]} 33...
Nxd1 {[%clk 0:00:09.3]} 34. Rfxd1 {[%clk 0:00:05.9]} 34... f4 {[%clk 0:00:07.6]}
35. Nd5 {[%clk 0:00:05]} 35... Ra6 {[%clk 0:00:07.4]} 36. Nxf4 {[%clk
0:00:04.6]} 36... Raxd6 {[%clk 0:00:05.3]} 37. Rdc1 {[%clk 0:00:04.6]} 37... Rc6
{[%clk 0:00:05]} 38. Ne2 {[%clk 0:00:04.3]} 38... Bd2 {[%clk 0:00:04.8]} 39. Rd1
{[%clk 0:00:03.7]} 39... Rcc8 {[%clk 0:00:04.4]} 40. Kf1 {[%clk 0:00:04.6]}
40... Nc5 {[%clk 0:00:04.1]} 41. Be5 {[%clk 0:00:04.5]} 41... b3 {[%clk
0:00:04]} 42. Bf6 {[%clk 0:00:04.9]} 42... Rd7 {[%clk 0:00:03.6]} 43. Bxh4
{[%clk 0:00:05]} 43... Ba5 {[%clk 0:00:03.4]} 44. Rxd7 {[%clk 0:00:04.1]} 44...
Nxd7 {[%clk 0:00:03.9]} 45. Rxb3 {[%clk 0:00:04.1]} 45... Nc5 {[%clk 0:00:04.4]}
46. Rb1 {[%clk 0:00:04.1]} 46... Bd8 {[%clk 0:00:04.1]} 47. Bxd8 {[%clk
0:00:03.9]} 47... Rxd8 {[%clk 0:00:05]} 48. Nc3 {[%clk 0:00:04.4]} 48... f5
{[%clk 0:00:04.3]} 49. Ke2 {[%clk 0:00:04.5]} 49... Rd3 {[%clk 0:00:03.9]} 50.
Nb5 {[%clk 0:00:03.8]} 50... Rb3 {[%clk 0:00:04.1]} 51. Rxb3 {[%clk 0:00:03.7]}
51... Nxb3 {[%clk 0:00:05]} 52. Ke3 {[%clk 0:00:04.5]} 52... Kg7 {[%clk
0:00:04.6]} 53. Nd6 {[%clk 0:00:04.3]} 53... Na5 {[%clk 0:00:03.8]} 54. f3
{[%clk 0:00:03.7]} 54... exf3 {[%clk 0:00:03.5]} 55. Kxf3 {[%clk 0:00:04.2]}
55... Kf6 {[%clk 0:00:03.8]} 56. h4 {[%clk 0:00:03.9]} 56... Ke6 {[%clk
0:00:03]} 57. Nb5 {[%clk 0:00:03.4]} 57... Nc6 {[%clk 0:00:03.5]} 58. Kf4 {[%clk
0:00:03.6]} 58... Kf6 {[%clk 0:00:03.8]} 59. g3 {[%clk 0:00:03.9]} 59... Ne5
{[%clk 0:00:03.4]} 60. Nc7 {[%clk 0:00:04.2]} 60... Nd3+ {[%clk 0:00:03.1]} 61.
Ke3 {[%clk 0:00:04.3]} 61... Nc5 {[%clk 0:00:03.1]} 62. Nd5+ {[%clk 0:00:03.4]}
62... Ke5 {[%clk 0:00:03]} 63. Nf4 {[%clk 0:00:04.3]} 63... Kf6 {[%clk
0:00:03.1]} 64. Kd4 {[%clk 0:00:03.6]} 64... Ne6+ {[%clk 0:00:03.1]} 65. Ke3
{[%clk 0:00:01.4]} 65... Nxf4 {[%clk 0:00:03]} 66. gxf4 {[%clk 0:00:02]} 66...
b5 {[%clk 0:00:03.1]} 67. Kd4 {[%clk 0:00:02.3]} 67... Kg7 {[%clk 0:00:03.6]}
68. Kc5 {[%clk 0:00:02.5]} 68... Kh6 {[%clk 0:00:04.5]} 69. Kxb5 {[%clk
0:00:02.9]} 69... Kh5 {[%clk 0:00:05]} 70. Kc5 {[%clk 0:00:03.8]} 70... Kxh4
{[%clk 0:00:05.5]} 71. Kd5 {[%clk 0:00:04.7]} 71... Kg4 {[%clk 0:00:05.7]} 72.
Ke5 {[%clk 0:00:05]} 72... Kf3 {[%clk 0:00:05.8]} 73. Kf6 {[%clk 0:00:05.8]}
73... Kxf4 {[%clk 0:00:06.7]} 74. Kxg6 {[%clk 0:00:06.7]} 74... Kg4 {[%clk
0:00:07.2]} 0-1